Workbook

Sheet NSU
B1: Senni Sallinen | E1: 1.1.1997 Vehkalahti
B2: SUPERPESIS | E2: Runkosarja | I2: Kärkilyönnit (KL), pesänvälit | Q2: Runkosarja | U2: Ylempi loppusarja | Z2: Alempi loppusarja | AG2: Arvo-ottelut ja mitalit
B3: Vuosi | C3: Sija | D3: Seura | E3: OTT | F3: KUN | G3: LÖI | H3: TOI | I3: KL | J3: 0 > 1 | K3: 1 > 2 | L3: 2 > 3 | M3: 3 > k | N3: KL-% | P3: LÖI | Q3: TOI | R3: L+T | S3: KL | U3: OTT | V3: KUN | W3: LÖI | X3: TOI | Y3: KL | Z3: OTT | AA3: KUN | AB3: LÖI | AC3: TOI | AD3: KL | AE3: IL | AF3: LL | AG3: Halli | AH3: K | AI3: H | AJ3: P
B4: 2013 | D4: KiPa | F4: suomensarja
B5: 2014 | D5: ViU 2 | F5: suomensarja
B6: 2015 | D6: ViU 2 | F6: ykköspesis
B7: 2015 | C7: 8. | D7: ViU | E7: 2 | F7: 0 | G7: 0 | H7: 0 | I7: 3 | J7: 2 | K7: 1 | L7: 0 | M7: 0 | N7: 33.3 % | O7: 9 | U7: 2 | V7: 0 | W7: 0 | X7: 0 | Y7: 4
B8: 2016 | C8: 10. | D8: ViU | E8: 22 | F8: 1 | G8: 9 | H8: 8 | I8: 75 | J8: 16 | K8: 25 | L8: 24 | M8: 10 | N8: 57.7 % | O8: 130
B9: 2017 | C9: 1. | D9: Manse PP | E9: 26 | F9: 0 | G9: 15 | H9: 9 | I9: 70 | J9: 9 | K9: 27 | L9: 19 | M9: 15 | N9: 47.9 % | O9: 146 | U9: 12 | V9: 0 | W9: 3 | X9: 6 | Y9: 37 | AE9: 1 | AF9: 1 | AH9: 1
B10: 2018 | C10: 2. | D10: Manse PP | E10: 26 | F10: 0 | G10: 6 | H10: 12 | I10: 70 | J10: 12 | K10: 25 | L10: 27 | M10: 6 | N10: 46.1 % | O10: 152 | U10: 10 | V10: 0 | W10: 3 | X10: 2 | Y10: 21 | AE10: 1 | AI10: 1
B11: 2019 | C11: 4. | D11: Manse PP | E11: 24 | F11: 0 | G11: 3 | H11: 13 | I11: 57 | J11: 33 | K11: 13 | L11: 8 | M11: 3 | N11: 44.5 % | O11: 128 | U11: 9 | V11: 0 | W11: 0 | X11: 2 | Y11: 15 | AE11: 1
B12: 2020 | C12: 2. | D12: Manse PP | E12: 20 | F12: 0 | G12: 0 | H12: 9 | I12: 33 | J12: 16 | K12: 9 | L12: 8 | M12: 0 | N12: 53.2 % | O12: 62 | U12: 9 | V12: 0 | W12: 1 | X12: 0 | Y12: 12 | AI12: 1
B13: 2021 | C13: 3. | D13: Manse PP | E13: 17 | F13: 1 | G13: 5 | H13: 8 | I13: 29 | J13: 6 | K13: 10 | L13: 7 | M13: 6 | N13: 49.2 % | O13: 59 | U13: 11 | V13: 0 | W13: 0 | X13: 1 | Y13: 10 | AE13: 1 | AJ13: 1
B14: 2022 | C14: 2. | D14: Manse PP | E14: 15 | F14: 0 | G14: 1 | H14: 2 | I14: 10 | J14: 1 | K14: 1 | L14: 7 | M14: 1 | N14: 45.5 % | O14: 22 | U14: 7 | V14: 0 | W14: 0 | X14: 2 | Y14: 5 | AG14: 1 | AI14: 1
B15: Yhteensä | E15: =SUM(E4:E14) -> 152 | F15: 2 | G15: 39 | H15: 61 | I15: 347 | J15: 95 | K15: 111 | L15: 100 | M15: 41 | N15: =PRODUCT(I15/O15) -> 49.0 % | O15: =SUM(O4:O14) -> 708 | U15: 60 | V15: 0 | W15: 7 | X15: 13 | Y15: 104 | Z15: 0 | AA15: 0 | AB15: 0 | AC15: 0 | AD15: 0 | AE15: 4 | AF15: 1 | AG15: 1 | AH15: 1 | AI15: 3 | AJ15: 1
B16: Pesispörssi | D16: =SUM(F15:H15)+((I15-F15-G15)/3)+(E15/3)+(AE15*25)+(AF15*25)+(AG15*10)+(AH15*25)+(AI15*20)+(AJ15*15) -> 489.7
B18: URA SUPERISSA | E18: OTT | F18: KUN | G18: LÖI | H18: TOI | I18: KL | K18: ka/L | L18: ka/T | M18: ka/KL | N18: K - % | P18: ENSIMMÄISET
B19: Runkosarja | E19: =PRODUCT(E15) -> 152 | F19: =PRODUCT(F15) -> 2 | G19: =PRODUCT(G15) -> 39 | H19: =PRODUCT(H15) -> 61 | I19: =PRODUCT(I15) -> 347 | K19: =PRODUCT((F19+G19)/E19) -> 0.27 | L19: =PRODUCT(H19/E19) -> 0.40 | M19: =PRODUCT(I19/E19) -> 2.28 | N19: =PRODUCT(N15) -> 49.0 % | O19: =PRODUCT(O15) -> 708 | P19: Ottelu | R19: 08.07. 2015 KeKi - ViU 1-2 (4-0, 0-1, 1-1, 1-3) | AB19: 1. ottelu | AE19: 18 v 6 kk 7 pv
B20: Ylempi loppusarja | E20: =PRODUCT(U15) -> 60 | F20: =PRODUCT(V15) -> 0 | G20: 7 | H20: 13 | I20: 104 | K20: =PRODUCT((F20+G20)/E20) -> 0.12 | L20: =PRODUCT(H20/E20) -> 0.22 | M20: =PRODUCT(I20/E20) -> 1.73 | N20: =PRODUCT(I20/O20) -> 42.3 % | O20: 246 | P20: Lyöty | R20: 14.06. 2016 ViU - ViPa 2-0 (4-3, 8-1) | AB20: 13. ottelu | AE20: 19 v 5 kk 13 pv
B21: Alempi loppusarja | P21: Tuotu | R21: 14.06. 2016 ViU - ViPa 2-0 (4-3, 8-1) | AB21: 13. ottelu | AE21: 19 v 5 kk 13 pv
B22: KAIKKI | E22: =SUM(E19:E21) -> 212 | F22: =SUM(F19:F21) -> 2 | G22: =SUM(G19:G21) -> 46 | H22: =SUM(H19:H21) -> 74 | I22: =SUM(I19:I21) -> 451 | K22: =PRODUCT((F22+G22)/E22) -> 0.23 | L22: =PRODUCT(H22/E22) -> 0.35 | M22: =PRODUCT(I22/E22) -> 2.13 | N22: =PRODUCT(I22/O22) -> 47.3 % | O22: =SUM(O19:O21) -> 954 | P22: Kunnari | R22: 24.07. 2016 KPK - ViU 2-1 (3-6, 2-0, 4-1) | AB22: 22. ottelu | AE22: 19 v 6 kk 23 pv
B24: Vuoden lukkari 2017
B26: Seurat | D26: ViU = Viinijärven Urheilijat (1914), kasvattajaseura
D27: KiPa = Kiteen Pallo-90 (1990)
D28: Manse PP = Manse PP Edustus (2015)

Sheet Arvo-ottelut
B1: ITÄ - LÄNSI - KORTTI
B2: Senni Sallinen | C2: 1.1.1997 Vehkalahti
B3: NAISET | C3: Itä - Länsi, tulos | D3: Joukkue | E3: Seura | G3: V | H3: T | I3: H | J3: Up. | K3: Lj. | L3: Palk. | M3: O | N3: K | O3: L | P3: T | Q3: KL | R3: 1 | S3: 2 | T3: 3 | U3: k | V3: KL-% | W3: Pelinjohtaja | X3: Yleisöä
B4: 01.07. 2017 Imatra | C4: 0-1 (2-2, 3-7) | D4: Länsi | E4: Manse PP | G4: 1 | J4: L | K4: 9 | M4: 1 | Q4: 1/3 | R4: 1/2 | S4: 0/1 | V4: 33.3 % | W4: Jarkko Pokela | X4: 3171
B5: 30.06. 2018 Joensuu | C5: 1-2 (2-1, 3-4, 0-1) | D5: Itä | E5: Manse PP | I5: 1 | J5: L | K5: 9 | M5: 1 | Q5: 0/2 | R5: 0/1 | T5: 0/1 | V5: 0.0 % | W5: Seppo Salmela | X5: 3287
B6: 06.07. 2019 Seinäjoki | C6: 0-1 (1-2, 4-4) | D6: Itä | E6: Manse PP | I6: 1 | K6: jok | M6: 1 | O6: 1 | P6: 1 | Q6: 2/4 | S6: 0/2 | T6: 1/1 | U6: 1/1 | V6: 50.0 % | W6: Jussi Viljanen | X6: 3911
B7: 07.08. 2021 Pori | C7: 0-2 (1-4, 0-3) | D7: Itä | E7: Manse PP | I7: 1 | J7: L | K7: 8 | L7: II p | M7: 1 | Q7: 0/2 | S7: 0/1 | T7: 0/1 | V7: 0.0 % | W7: Sarita Heikkinen | X7: 3050
B8: Yhteensä | G8: 1 | I8: 3 | M8: 4 | O8: 1 | P8: 1 | Q8: 3/11 | R8: 1/3 | S8: 0/4 | T8: 1/3 | U8: 1/1 | V8: 27.3 %
B9: Ikä ensimmäisessä ottelussa | C9: 20 v 6 kk 0 pv
B11: B-TYTÖT | C11: Itä - Länsi, tulos | D11: Joukkue | E11: Seura | G11: V | H11: T | I11: H | J11: Up. | K11: Lj. | L11: Palk. | M11: O | N11: K | O11: L | P11: T | Q11: KL | R11: 1 | S11: 2 | T11: 3 | U11: k | V11: KL-% | W11: Pelinjohtaja | X11: Yleisöä
B12: 27.06. 2015 Hyvinkää | C12: 2-0 (3-1, 5-4) | D12: Itä | E12: SurMa | G12: 1 | J12: L | K12: 8 | M12: 1 | Q12: 1/4 | R12: 0/2 | S12: 1/2 | V12: 25.0 % | W12: Teemu Körkkö | X12: 869
B13: 02.07. 2016 Kouvola | C13: 2-1 (4-2, 9-10, 3-2) | D13: Itä | E13: SurMa | G13: 1 | J13: L | K13: 9 | M13: 1 | P13: 1 | Q13: 1/4 | R13: 1/2 | S13: 0/1 | U13: 0/1 | V13: 25.0 % | W13: Antti Vihtkari | X13: 1615
B14: Yhteensä | G14: 2 | M14: 2 | Q14: 2/8 | R14: 1/4 | S14: 1/3 | U14: 0/1 | V14: 25.0 %
B16: LIITTO - LEHDISTÖ - KORTTI
B17: NAISET | C17: Tulos | D17: Joukkue | E17: Seura | G17: V | H17: T | I17: H | J17: Up. | K17: Lj. | L17: Palk. | M17: O | N17: K | O17: L | P17: T | Q17: KL | R17: 1 | S17: 2 | T17: 3 | U17: k | V17: KL-% | W17: Pelinjohtaja | X17: Yleisöä
B18: 20.06. 2017 Lapua | C18: 0-1 (1-4, 2-2) | D18: Liitto | E18: Manse PP | I18: 1 | J18: L | K18: 9 | M18: 1 | Q18: 0/3 | R18: 0/2 | U18: 0/1 | V18: 0.0 % | W18: Jukka Liikala | X18: 804
B19: Ikä ensimmäisessä ottelussa | C19: 20 v 5 kk 19 pv
